bitfinex-derivatives/quotes_ETHF0:USTF0_20240924
["timestamp","ask_amount","ask_price","bid_price","bid_amount"]
[1727182789157,0.37944,2635.6,2635.5,4.02251924]
[1727182789852,0.37946,2635.5,2635.4,0.37945]
[1727182790249,0.37946,2635.5,2635.4,4.52986372]
[1727182793059,9.7944,2635.5,2634.4,0.3796]
[1727182793360,0.37959,2634.5,2634.4,4.38701311]
[1727182793958,0.37959,2634.5,2634.4,4.76662311]
[1727182794267,0.37959,2634.5,2634.4,4.38701311]
[1727182799276,0.37959,2634.5,2633.9,1.13478643]
[1727182799277,0.94909,2634.3,2633.9,0.37968]
[1727182799475,0.37965,2634.1,2634.0,0.3828]
[1727182799766,0.37965,2634.1,2634.0,0.76246]
[1727182800558,0.98917098,2634.4,2634.1,0.37964]
[1727182800760,0.37962,2634.4,2634.2,0.37964]
[1727182800971,3.58743,2634.3,2634.2,4.31208938]
[1727182801171,0.37963,2634.3,2634.2,4.31208938]
[1727182801868,0.98917098,2634.5,2634.2,4.31208938]
[1727182802067,0.37961,2634.5,2634.3,0.37962]
[1727182802270,0.37961,2634.5,2634.4,0.3835]
[1727182803173,0.37961,2634.5,2634.4,0.7462]
[1727182805070,1.93811098,2634.7,2634.4,1.12581]
[1727182805369,0.98917098,2634.7,2634.5,0.76069]
[1727182805574,0.98917098,2634.8,2634.5,0.3811]
[1727182805768,0.98917098,2634.8,2634.5,0.76069]
[1727182805769,0.37958,2634.6,2634.5,0.76069]
[1727182806373,0.98917098,2634.8,2634.5,0.76069]
[1727182806580,0.37957,2634.7,2634.6,0.37957]
[1727182806872,4.19697098,2634.9,2634.6,4.11613567]
[1727182807064,3.2078,2635.0,2634.8,2.67]
[1727182807267,3.2078,2635.0,2634.9,1.13094]
[1727182807268,3.58733,2635.0,2634.9,1.13094]
[1727182807465,3.58733,2635.0,2634.9,5.21906367]
[1727182807466,0.37953,2635.0,2634.9,5.21906367]
[1727182807661,0.37953,2635.0,2634.9,4.83952367]
[1727182807867,0.37953,2635.0,2634.9,4.46692367]
[1727182808065,0.37953,2635.0,2634.9,0.3788]
[1727182809375,0.37951,2635.1,2634.9,0.3788]
[1727182809572,0.37951,2635.1,2635.0,0.3933]
[1727182809975,3.5873,2635.2,2635.0,0.77282]
[1727182810174,3.2078,2635.2,2635.1,0.37951]
[1727182810375,4.19697098,2635.5,2635.1,0.74061]
[1727182810676,4.19697098,2635.5,2635.2,0.37949]
[1727182810868,0.37947,2635.4,2635.1,0.3611]
[1727182811069,0.37949,2635.2,2635.1,0.7406]
[1727182811265,0.37949,2635.3,2635.1,0.7406]
[1727182812778,4.19697098,2635.5,2635.1,0.3611]
[1727182812970,0.98917098,2635.8,2635.4,2.67]
[1727182813284,4.082,2636.1,2636.0,0.37938]
[1727182813285,0.98917098,2636.1,2636.0,0.37938]
[1727182813476,0.37935,2636.2,2635.9,0.37938]
[1727182813782,0.37933,2636.3,2636.0,0.79589247]
[1727182813974,1.36850098,2636.4,2636.0,1.17526247]
[1727182814177,1.36850098,2636.4,2636.0,0.7798]
[1727182814178,0.98917098,2636.4,2636.0,0.7798]
[1727182814374,0.98917098,2636.4,2636.0,1.15917]
[1727182814375,1.36850098,2636.4,2636.0,1.15917]
[1727182814578,0.98917098,2636.4,2636.0,1.15917]
[1727182814881,0.98917098,2636.4,2636.1,2.67]
[1727182815076,5.07117098,2636.8,2636.3,2.67]
[1727182815379,4.90555647,2636.9,2636.4,4.7502556]
[1727182815380,3.58705,2636.9,2636.4,4.7502556]
[1727182815580,3.2078,2636.9,2636.4,4.7502556]
[1727182815771,0.37928,2636.7,2636.4,4.3709456]
[1727182815967,0.3793,2636.5,2636.4,4.3709456]
[1727182816278,0.3793,2636.5,2636.2,0.3693]
[1727182816971,3.5871,2636.6,2636.2,0.74865]
[1727182817172,3.5871,2636.6,2636.3,4.19613795]
[1727182817368,0.37931,2636.5,2636.3,4.19613795]
[1727182817780,3.5871,2636.6,2636.3,4.19613795]
[1727182817983,0.37931,2636.5,2636.3,4.19613795]
[1727182818181,3.2078,2636.6,2636.3,4.19613795]
[1727182818378,0.37931,2636.5,2636.2,0.3693]
[1727182818585,0.37931,2636.5,2636.2,0.74865]
[1727182820087,3.5871,2636.6,2636.2,0.74865]
[1727182820481,3.5871,2636.6,2636.3,0.37933]
[1727182822478,3.2078,2636.6,2636.5,0.3793]
[1727182822887,3.2078,2636.6,2636.3,2.67]
[1727182822888,3.5871,2636.6,2636.3,7.04789261]
[1727182823089,3.2078,2636.6,2636.4,0.37932]
[1727182823278,3.2078,2636.6,2636.5,0.3793]
[1727182823478,3.2078,2636.6,2636.5,0.7641]
[1727182824090,3.58709,2636.6,2636.5,0.7641]
[1727182824286,3.2078,2636.6,2636.5,0.7641]
[1727182824597,3.2078,2636.6,2636.3,0.37933]
[1727182824783,0.37933,2636.4,2636.2,1.11004]
[1727182825393,0.37933,2636.3,2636.2,0.3614]
[1727182825581,6.82614,2636.3,2635.8,0.3654]
[1727182825785,0.37938,2636.0,2635.9,0.37939]
[1727182825987,0.37938,2636.0,2635.8,5.00687582]
[1727182826285,0.37939,2635.9,2635.8,0.3654]
[1727182826484,0.37939,2635.9,2635.8,0.74481]
[1727182826690,3.58719,2636.0,2635.8,0.74481]
[1727182826993,0.37939,2635.9,2635.8,0.74481]
[1727182827294,0.37939,2635.9,2635.8,0.3654]
[1727182827490,0.37939,2635.9,2635.8,0.74481]
[1727182827689,0.37939,2635.9,2635.8,0.3654]
[1727182828086,0.37939,2635.9,2635.8,0.74481]
[1727182828287,3.58718,2636.0,2635.8,0.74481]
[1727182828789,3.58718,2636.0,2635.9,0.37939]
[1727182828999,3.2078,2636.0,2635.9,0.37939]
[1727182829292,3.58718,2636.0,2635.9,0.37939]
[1727182829978,3.58718,2636.0,2635.8,0.7448]
[1727182830185,3.2078,2636.0,2635.9,0.37939]
[1727182830386,3.58719,2636.0,2635.8,0.7448]
[1727182830692,0.37939,2635.9,2635.8,0.7448]
[1727182830994,0.37939,2635.9,2635.8,0.74481]
[1727182831384,0.37942,2635.7,2635.6,0.3614]
[1727182831784,4.17382,2635.7,2635.6,0.3614]
[1727182831987,4.17382,2635.7,2635.6,0.74083]
[1727182832187,0.37942,2635.7,2635.6,0.74083]
[1727182832993,3.2078,2636.0,2635.6,0.3614]
[1727182833184,0.37939,2635.9,2635.7,0.37941]
[1727182833888,0.37941,2635.8,2635.7,0.37941]
[1727182834293,0.3794,2635.9,2635.7,0.37941]
[1727182834788,3.2078,2636.0,2635.6,0.3614]
[1727182834789,3.58718,2636.0,2635.6,0.3614]
[1727182834986,3.58718,2636.0,2635.8,0.3794]
[1727182835188,3.2078,2636.0,2635.9,0.37939]
[1727182835389,0.37937,2636.1,2635.9,0.37938]
[1727182835691,0.37936,2636.2,2636.0,0.37937]
[1727182835892,0.37937,2636.1,2635.9,0.37938]
[1727182836194,0.37937,2636.1,2635.8,0.3633]
[1727182836395,0.37937,2636.1,2635.9,0.37939]
[1727182836789,0.37937,2636.1,2636.0,0.37938]
[1727182839102,0.37937,2636.1,2634.4,0.37961]
[1727182839103,0.37953,2635.0,2634.4,0.37961]
[1727182839393,2.67,2634.8,2634.4,0.382]
[1727182839593,3.04956,2634.8,2634.4,0.382]
[1727182839788,0.37959,2634.5,2634.4,0.382]
[1727182839986,3.2078,2634.6,2633.8,2.67]
[1727182839987,5.8778,2634.6,2633.8,0.3896]
[1727182840196,4.01,2634.7,2633.8,0.3896]
[1727182840197,3.58743,2634.3,2633.8,0.3896]
[1727182840995,0.37965,2634.2,2633.8,0.3896]
[1727182841191,3.58743,2634.3,2633.8,0.3896]
[1727182841793,3.2078,2634.3,2633.8,0.76929]
[1727182842289,3.58742,2634.3,2633.8,0.3896]
[1727182843504,3.2078,2634.3,2633.9,4.12539089]
[1727182846905,3.58743,2634.3,2633.9,4.12539089]
[1727182848703,3.58743,2634.3,2633.9,4.50507089]
[1727182849092,3.2078,2634.3,2634.0,0.37966]
[1727182849297,3.2078,2634.3,2634.1,0.37965]
[1727182849606,3.2078,2634.3,2634.0,0.37966]
[1727182850693,3.58743,2634.3,2633.9,4.50506089]
[1727182850901,3.2078,2634.3,2633.9,4.12539089]
[1727182851094,3.2078,2634.3,2634.0,0.37965]
[1727182852100,0.37962,2634.4,2634.0,0.37965]
[1727182852301,3.2958,2635.2,2634.3,2.67]
[1727182852600,3.2958,2635.2,2634.2,4.15688]
[1727182852601,0.37952,2635.0,2634.7,0.37956]
[1727182853094,3.2078,2635.2,2634.7,0.37956]
[1727182853295,0.37952,2635.1,2634.8,0.37955]
[1727182853497,0.37952,2635.0,2634.7,0.37956]
[1727182854203,0.37952,2635.0,2634.8,4.33476931]
[1727182854909,0.37953,2635.0,2634.8,4.33476931]
[1727182857100,0.37953,2635.0,2634.7,0.37955]
[1727182857504,0.37953,2635.0,2634.7,0.16909336]
[1727182857703,0.37953,2635.0,2634.8,4.45706325]
[1727182858098,0.37953,2635.0,2634.8,0.37955]
[1727182858500,3.58733,2635.0,2634.7,0.37955]
[1727182858696,0.37954,2634.9,2634.7,0.37955]
[1727182859001,0.37954,2634.9,2634.8,3.71616622]
[1727182860606,0.37954,2634.9,2634.8,0.37955]
[1727182860803,3.2078,2635.0,2634.5,0.35198204]
[1727182861004,0.37955,2634.8,2634.7,0.37956]
[1727182861205,0.37955,2634.8,2634.6,4.39357865]
[1727182861411,6.82663,2635.0,2634.6,4.39357865]
[1727182861412,0.37956,2634.7,2634.6,4.01400865]
[1727182862007,0.37956,2634.7,2634.6,3.87436444]
[1727182862403,0.37956,2634.7,2634.6,4.25394444]
[1727182862605,0.94886,2634.9,2634.6,4.25394444]
[1727182862606,0.37955,2634.8,2634.7,0.37956]
[1727182862807,0.37955,2634.8,2634.6,4.25393444]
[1727182864109,0.37956,2634.7,2634.6,3.87436444]
[1727182864616,3.58736,2634.7,2634.6,3.87436444]
[1727182865004,0.37956,2634.7,2634.6,4.25394444]
[1727182866907,3.58736,2634.7,2634.6,3.87436444]
[1727182867507,3.58736,2634.7,2634.4,0.7352]
[1727182867508,0.37959,2634.5,2634.4,0.7352]
[1727182869517,0.37959,2634.5,2634.4,1.11481]
[1727182869710,0.98612779,2635.1,2634.4,4.5312]
[1727182869711,0.94882,2635.0,2634.4,4.5312]
[1727182870015,0.37956,2634.7,2634.6,0.37956]
[1727182872811,0.37957,2634.7,2634.5,2.67]
[1727182873114,0.37957,2634.7,2634.6,0.37958]
[1727182873309,0.37957,2634.7,2634.6,4.5129955]
[1727182873709,0.37957,2634.7,2634.6,4.1334155]
[1727182874117,0.37957,2634.7,2634.6,4.5129955]
[1727182874404,0.37964,2634.2,2634.0,0.37966]
[1727182874611,0.37964,2634.2,2634.1,0.37964]
[1727182874812,4.15684,2634.4,2634.2,0.37963]
[1727182875010,3.58741,2634.4,2634.3,0.37962]
[1727182875417,7.38341,2634.4,2634.3,0.37962]
[1727182875719,1.69319168,2635.0,2634.6,0.37958]
[1727182875720,3.58737,2634.7,2634.6,0.37958]
[1727182875921,3.58737,2634.7,2634.5,0.37959]
[1727182875922,0.37959,2634.6,2634.5,0.37959]
[1727182876220,0.37959,2634.6,2634.5,0.75129]
[1727182876411,3.2078,2634.7,2634.6,0.37958]
[1727182876412,3.58737,2634.7,2634.6,0.37958]
[1727182876611,0.37958,2634.6,2634.5,0.75129]
[1727182877608,1.32853,2634.6,2634.5,0.3717]
[1727182877808,0.37958,2634.6,2634.5,0.3717]
[1727182878717,0.37959,2634.5,2634.4,0.3665]
[1727182878915,0.37959,2634.5,2634.4,0.74611]
[1727182879518,0.37959,2634.5,2634.4,0.3665]
[1727182880511,0.37964,2634.2,2634.1,1.12034]
[1727182880719,3.58743,2634.3,2634.2,0.37964]
[1727182880922,3.58743,2634.3,2634.2,4.68445158]
[1727182880923,0.37963,2634.3,2634.2,4.68445158]
[1727182881121,0.37963,2634.3,2634.2,0.37964]
[1727182881914,0.37962,2634.4,2634.1,0.7407]
[1727182882110,0.94899,2634.5,2634.1,0.7407]
[1727182882111,0.37962,2634.3,2634.1,0.7407]
[1727182882316,0.37962,2634.3,2634.2,4.0598596]
[1727182882516,0.37962,2634.4,2634.3,0.37962]
[1727182882923,0.98612779,2634.5,2634.2,4.4394896]
[1727182883223,0.37962,2634.4,2634.2,4.4394896]
[1727182883813,0.37962,2634.4,2634.3,0.37962]
[1727182884421,0.37962,2634.4,2634.2,4.4394896]
[1727182884422,1.36574779,2634.4,2634.2,4.4394896]
[1727182884622,1.36574779,2634.4,2634.3,0.37962]
[1727182885032,1.36574779,2634.4,2634.2,4.4394896]
[1727182885329,0.37961,2634.4,2634.2,4.0598596]
[1727182885630,0.98970902,2634.3,2634.2,4.4394796]
[1727182885824,1.36932902,2634.3,2634.2,4.4394796]
[1727182886025,0.37962,2634.3,2634.2,4.4394796]
[1727182886936,1.3693741,2634.4,2634.3,0.37962]
[1727182887226,0.37962,2634.4,2634.2,4.4394896]
[1727182887426,0.98976102,2634.3,2634.2,4.4394896]
[1727182887727,1.36938102,2634.4,2634.3,0.37962]
[1727182887926,0.98976102,2634.4,2634.3,0.37962]
[1727182888119,0.98988359,2634.5,2634.2,4.0598596]
[1727182888315,0.98988359,2634.5,2634.4,0.37961]
[1727182888519,5.06658168,2634.6,2634.5,0.37959]
[1727182888520,4.68699168,2634.6,2634.5,0.37959]
[1727182889924,4.19812145,2634.6,2634.5,0.37959]
[1727182890123,4.19817387,2634.6,2634.5,0.37959]
[1727182890325,4.19818163,2634.6,2634.5,0.37959]
[1727182892931,3.2078,2634.6,2634.5,0.37959]
[1727182893134,4.19845301,2634.6,2634.5,0.37959]
[1727182893439,4.19854522,2634.6,2634.5,0.37959]
[1727182893646,4.68699168,2634.6,2634.5,0.37959]
[1727182894535,4.68699168,2634.6,2634.5,4.17559]
[1727182894730,3.41414947,2635.0,2634.6,0.37958]
[1727182894731,0.99085558,2634.7,2634.6,0.37958]
[1727182894926,0.99085558,2634.8,2634.7,0.37956]
[1727182895129,1.37039558,2634.9,2634.8,0.37955]
[1727182895324,1.85873168,2634.9,2634.8,0.37955]
[1727182895530,0.37954,2634.9,2634.8,0.91985991]
[1727182895731,0.37954,2634.9,2634.8,0.37954]
[1727182896726,1.48643644,2635.0,2634.9,0.37954]
[1727182897033,1.67629082,2635.0,2634.9,0.37954]
[1727182897228,1.48643644,2635.0,2634.9,0.37954]
[1727182897432,1.67628878,2635.0,2634.9,0.37954]
[1727182897630,1.48643644,2635.0,2634.9,0.37954]
[1727182897932,0.99116984,2635.3,2635.0,0.94881]
[1727182898229,1.97225558,2635.6,2635.4,0.37946]
[1727182898230,0.99116984,2635.5,2635.4,0.37946]
[1727182898436,0.99116984,2635.6,2635.5,0.37945]
[1727182898634,1.37057984,2635.8,2635.5,4.27537953]
[1727182898827,0.99116984,2635.7,2635.6,0.37942]
[1727182899641,1.86584644,2635.8,2635.6,0.37942]
[1727182899642,1.37057984,2635.8,2635.6,0.37942]
[1727182900033,1.37057984,2635.8,2635.7,0.3925]
[1727182900234,4.69423644,2635.9,2635.7,4.89106572]
[1727182900235,1.37056984,2635.9,2635.7,4.89106572]
[1727182900537,0.99116984,2636.0,2635.7,4.89105572]
[1727182900840,0.37939,2635.9,2635.7,4.89105572]
[1727182901040,1.37055984,2635.9,2635.7,4.89105572]
[1727182901244,0.99116984,2635.9,2635.7,4.89105572]
[1727182901538,0.99116984,2636.0,2635.7,4.51164572]
[1727182901841,1.37053984,2636.1,2635.7,4.51164572]
[1727182902035,1.37054984,2636.0,2635.8,0.3794]
[1727182902343,0.37938,2636.0,2635.9,0.3839]
[1727182907342,6.06988,2636.0,2635.4,0.37946]
[1727182907533,0.37944,2635.6,2635.4,0.37946]
[1727182907739,0.37946,2635.5,2635.3,0.3956]
[1727182907930,0.37944,2635.6,2635.3,0.3956]
[1727182908138,0.37944,2635.6,2635.4,4.36536725]
[1727182908432,4.15634,2635.8,2635.4,4.36536725]
[1727182908650,0.37944,2635.6,2635.5,0.3792]
[1727182909639,0.37944,2635.6,2635.5,0.75865]
[1727182909844,0.37943,2635.7,2635.5,0.3792]
[1727182910142,3.2078,2635.8,2635.6,0.37943]
[1727182910346,0.37942,2635.7,2635.5,0.75864]
[1727182910651,0.3794,2635.9,2635.7,4.3974922]
[1727182910835,3.5872,2635.9,2635.8,0.388]
[1727182911142,0.94836,2636.3,2635.8,3.058]
[1727182911334,3.2078,2636.5,2636.2,2.67]
[1727182911535,0.3793,2636.6,2636.4,3.04932]
[1727182911839,3.5871,2636.6,2636.5,2.67]
[1727182912144,0.3793,2636.6,2636.5,2.67]
[1727182912343,3.5871,2636.6,2636.5,2.67]
[1727182912848,0.3793,2636.5,2636.4,0.3746]
[1727182914050,0.37932,2636.4,2636.3,0.3809]
[1727182914236,0.37932,2636.4,2636.3,0.76023]
[1727182914443,0.37932,2636.4,2636.3,0.3809]
[1727182914637,0.37932,2636.4,2636.3,0.76023]
[1727182914843,0.37932,2636.4,2636.3,0.3809]
[1727182918135,3.2078,2636.6,2636.3,3.0509]
[1727182918136,0.37931,2636.5,2636.3,3.0509]
[1727182918347,0.37931,2636.5,2636.4,0.74252]
[1727182918649,3.2078,2636.6,2636.5,0.3793]
[1727182918650,3.5871,2636.6,2636.5,0.3793]
[1727182918840,3.5871,2636.6,2636.4,4.94318876]
[1727182919040,3.5871,2636.6,2636.5,0.394]
[1727182920337,3.5871,2636.6,2636.5,0.7733]
[1727182920539,3.5871,2636.6,2636.5,0.394]
[1727182921544,3.5871,2636.6,2636.5,0.7733]
[1727182921746,3.2078,2636.6,2636.5,3.4433]
[1727182922144,3.2078,2636.6,2636.5,7.49948533]
[1727182922742,3.2078,2636.9,2636.8,0.37926]
[1727182922945,3.58705,2636.9,2636.8,0.37926]
[1727182923150,3.2078,2636.9,2636.8,0.37926]
[1727182923448,3.2078,2636.9,2636.8,0.3875]
[1727182923449,3.58705,2636.9,2636.8,0.3875]
[1727182924546,3.2078,2636.9,2636.8,0.76676]
[1727182925041,3.58705,2636.9,2636.8,0.76676]
[1727182925351,3.2078,2636.9,2636.8,0.76676]
[1727182925747,0.37918,2637.4,2637.2,0.3792]
[1727182926043,5.11993525,2637.7,2636.8,9.17745286]
[1727182926044,0.37913,2637.7,2637.4,3.04916]
[1727182926254,0.37915,2637.6,2637.4,0.37916]
[1727182926547,0.37915,2637.6,2637.5,3.0343]
[1727182926854,0.37913,2637.7,2637.5,7.10065786]
[1727182927049,0.37915,2637.6,2637.5,7.10065786]
[1727182927354,0.37915,2637.6,2637.5,4.43065786]
[1727182928048,0.37915,2637.6,2637.5,7.10065786]
[1727182928243,0.37914,2637.7,2637.5,7.47981786]
[1727182929543,3.2078,2637.8,2637.5,7.47981786]
[1727182929544,0.37915,2637.6,2637.5,7.10065786]
[1727182930241,3.2078,2637.8,2637.5,7.47981786]
[1727182930242,0.37914,2637.7,2637.5,7.47981786]
[1727182930644,3.2078,2637.8,2637.5,7.10065786]
[1727182931051,0.37915,2637.6,2637.5,7.10065786]
[1727182931355,0.37915,2637.6,2637.5,4.43065786]
[1727182932444,0.37915,2637.6,2637.5,4.80981786]
[1727182932644,0.37915,2637.6,2637.5,4.43065786]
[1727182933051,0.37914,2637.7,2637.5,4.43065786]
[1727182933248,3.58693,2637.8,2637.6,2.67]
[1727182933442,3.58693,2637.8,2637.7,0.37913]
[1727182933841,3.2078,2637.8,2637.7,0.37913]
[1727182934050,3.58692,2637.8,2637.7,0.37913]
[1727182934247,0.37908,2638.1,2638.0,0.37908]
[1727182934442,0.37906,2638.2,2638.1,0.37907]
[1727182934641,0.37906,2638.2,2638.1,6.91448567]
[1727182934847,0.37906,2638.2,2638.1,2.67]
[1727182935253,0.37906,2638.2,2637.9,2.67]
[1727182935254,0.3791,2638.0,2637.9,2.67]
[1727182935453,0.3791,2638.0,2637.9,3.0491]
[1727182935656,0.3791,2638.0,2637.9,6.98773824]
[1727182936557,0.37909,2638.1,2638.0,0.37909]
[1727182936959,0.37909,2638.1,2638.0,4.53414888]
[1727182937253,0.37909,2638.1,2638.0,4.15505888]
[1727182939160,0.37909,2638.1,2638.0,4.53414888]
[1727182939858,0.37909,2638.1,2638.0,4.15505888]
[1727182942253,0.3791,2637.9,2637.8,0.3857]
[1727182942454,4.53467,2637.9,2637.8,0.3857]
[1727182943154,3.5869,2637.9,2637.8,0.3857]
[1727182945051,4.53467,2637.9,2637.8,0.3857]
[1727182945450,0.37912,2637.8,2637.7,2.67]
[1727182945963,1.32692,2637.8,2637.7,2.67]
[1727182947156,0.37918,2637.4,2636.8,2.67]
[1727182947362,0.37924,2637.0,2636.9,1.16784]
[1727182947655,0.37922,2637.1,2637.0,0.37923]
[1727182947857,0.37922,2637.2,2637.1,0.37922]
[1727182948060,0.37922,2637.2,2637.1,4.74503575]
[1727182948252,0.37922,2637.1,2637.0,7.41503575]
[1727182948450,0.37918,2637.4,2637.1,0.37922]
[1727182948451,0.37922,2637.2,2637.1,0.37922]
[1727182948650,0.98394756,2637.5,2637.4,0.37917]
[1727182948651,0.37917,2637.5,2637.4,0.37917]
[1727182949058,3.2078,2637.7,2637.3,2.67]
[1727182949361,3.2078,2637.7,2637.6,2.67]
[1727182949557,3.58694,2637.7,2637.6,3.04915]
[1727182949766,0.37914,2637.7,2637.6,3.04915]
[1727182950355,3.58694,2637.7,2637.6,3.04915]
[1727182950649,1.48643644,2638.1,2637.7,0.37912]
[1727182950650,0.37912,2637.8,2637.7,0.37912]
[1727182950863,0.37912,2637.8,2637.7,3.04912]
[1727182951160,0.37912,2637.8,2637.7,7.07164258]
[1727182954663,0.37912,2637.8,2637.7,4.02252258]
[1727182955059,0.37912,2637.9,2637.7,4.02252258]
[1727182955259,0.3791,2637.9,2637.8,2.67]
[1727182956959,0.37913,2637.7,2637.6,0.37914]
[1727182957266,0.37913,2637.7,2637.6,4.48735758]
[1727182957469,3.58693,2637.8,2637.7,0.37913]
[1727182957769,0.37913,2637.7,2637.6,4.48735758]
[1727182958358,0.37913,2637.7,2637.6,4.10821758]
[1727182958670,0.37913,2637.7,2637.6,4.48736758]
[1727182959964,4.57087756,2637.8,2637.7,0.37913]
[1727182960158,3.2078,2637.8,2637.7,3.04913]
[1727182960359,3.58692,2637.8,2637.7,3.04913]
[1727182960559,3.58692,2637.8,2637.7,7.29770359]
[1727182962467,4.57086756,2637.8,2637.7,7.29770359]
[1727182965369,5.07335644,2637.8,2637.7,7.29770359]
[1727182966168,5.7488343,2637.8,2637.7,7.29770359]
[1727182966368,3.77657872,2637.8,2637.7,6.91857359]
[1727182966571,5.75379649,2637.8,2637.7,7.29770359]
[1727182967259,5.75379649,2637.8,2637.7,6.91857359]
[1727182967663,5.75379649,2637.8,2637.7,4.24857359]
[1727182967664,4.72437872,2637.8,2637.7,4.24857359]
[1727182967871,0.37914,2637.7,2637.6,0.37914]
[1727182968171,2.54688585,2637.7,2637.6,0.37914]
[1727182968867,0.56879535,2637.7,2637.6,0.37914]
[1727182969367,4.73042383,2637.7,2637.6,0.37914]
[1727182969569,0.37915,2637.6,2637.5,1.13955]
[1727182969766,1.97946807,2637.6,2637.5,1.13955]
[1727182969963,2.16912342,2637.6,2637.5,5.0919724]
[1727182970169,2.54827342,2637.6,2637.5,5.0919724]
[1727182970368,2.16912342,2637.6,2637.5,5.0919724]
[1727182970667,2.54827342,2637.6,2637.5,5.0919724]
[1727182970867,2.16912342,2637.6,2637.5,5.0919724]
[1727182971061,3.03411482,2637.7,2637.6,0.37915]
[1727182971266,4.731196,2637.7,2637.6,0.37915]
[1727182971577,2.26587653,2637.7,2637.6,0.37915]
[1727182972374,0.37915,2637.6,2637.5,5.0919724]
[1727182972564,0.56880405,2637.6,2637.5,5.0919724]
[1727182972971,2.2667613,2637.6,2637.5,5.0919724]
[1727182973373,0.18965405,2637.6,2637.5,5.0919724]
[1727182973567,2.85582048,2637.6,2637.5,5.0919724]
[1727182973766,4.74360068,2637.6,2637.5,5.0919724]
[1727182974265,2.05502544,2637.6,2637.5,5.0919724]
[1727182974665,1.67587544,2637.6,2637.5,5.0919724]
[1727182974866,1.86537139,2637.6,2637.5,5.0919724]
[1727182975382,2.05503623,2637.6,2637.5,5.0919724]
[1727182976266,1.48622139,2637.6,2637.5,5.0919724]
[1727182976669,1.67588037,2637.6,2637.5,5.0919724]
[1727182976865,1.48622139,2637.6,2637.5,5.0919724]
[1727182977471,1.67588344,2637.6,2637.5,5.0919724]
[1727182979086,1.67588344,2637.6,2637.5,8.8831724]
[1727182979472,1.48622139,2637.6,2637.5,5.0919724]
[1727182979869,1.6758764,2637.6,2637.5,6.0398824]
[1727182980078,1.48622139,2637.6,2637.5,9.8310824]
[1727182981293,1.98162852,2637.6,2637.5,9.8310924]
[1727182982486,2.17128367,2637.6,2637.5,9.8310924]
[1727182982886,1.98162852,2637.7,2637.6,0.37915]
[1727182983077,2.17127615,2637.7,2637.6,3.04915]
[1727182983281,0.18964763,2637.7,2637.6,7.13119866]
[1727182984682,1.98375472,2637.8,2637.7,1.32697]
[1727182984884,1.4879568,2637.8,2637.7,5.11817]
[1727182985182,1.4879568,2637.9,2637.8,0.37912]
[1727182985382,1.98375472,2638.0,2637.9,3.0491]
[1727182985678,2.47667048,2638.1,2638.0,0.37909]
[1727182985886,2.47667048,2638.1,2638.0,1.30172821]
[1727182986180,2.47667048,2638.1,2638.0,4.86406238]
[1727182986585,4.16955224,2638.1,2638.0,4.86406238]
[1727182986885,3.92218321,2638.4,2638.1,0.37907]
[1727182986886,0.37907,2638.2,2638.1,0.37907]
[1727182987187,2.85894632,2638.2,2638.1,0.37907]
[1727182987388,4.55170407,2638.2,2638.1,0.37907]
[1727182987588,7.75960636,2638.2,2638.1,0.37907]
[1727182987788,7.75960636,2638.2,2638.1,0.91884848]
[1727182988091,2.0718218,2638.2,2638.1,0.37907]
[1727182988485,1.6927518,2638.2,2638.0,1.16208]
[1727182988689,4.17271358,2638.1,2638.0,0.783]
[1727182988890,4.17271358,2638.1,2638.0,1.70181865]
[1727182989193,1.98396387,2638.1,2638.0,6.05824928]
[1727182989392,1.98396387,2638.1,2638.0,5.51852063]
[1727182990489,1.98396387,2638.1,2638.0,6.74852063]
[1727182990684,2.36302387,2638.2,2638.1,0.37907]
[1727182990890,0.94777,2637.9,2637.6,0.99414672]
[1727182991088,0.37915,2637.6,2637.5,6.21774672]
[1727182991389,1.98314116,2637.6,2637.3,0.3918]
[1727182991696,2.36180465,2637.5,2637.3,4.7767961]
[1727182991883,1.98263465,2637.5,2637.4,1.60918]
[1727182992081,5.68672645,2637.7,2637.4,1.60918]
[1727182992082,1.98263465,2637.6,2637.5,0.37916]
[1727182992284,1.98263465,2637.6,2637.5,3.03916]
[1727182992488,1.4869614,2637.6,2637.5,11.2222761]
[1727182992690,1.4869614,2637.7,2637.6,0.37915]
[1727182992886,1.4869614,2637.7,2637.6,3.03915]
[1727182993080,1.4869614,2637.8,2637.6,10.94711572]
[1727182993279,2.36174465,2637.9,2637.6,6.77676572]
[1727182993488,0.37911,2637.9,2637.8,0.37912]
[1727182993795,0.37911,2637.9,2637.7,0.37912]
[1727182993998,1.98264003,2637.8,2637.7,0.37912]
[1727182994191,0.37913,2637.7,2637.6,7.15590572]
[1727182994494,2.36177003,2637.7,2637.6,7.15590572]
[1727182994797,1.98264003,2637.7,2637.6,7.15590572]
[1727182996392,2.36177003,2637.8,2637.7,0.37913]
[1727182997191,1.98264003,2637.8,2637.7,0.37913]
[1727182997394,1.98264003,2637.8,2637.7,4.682315]
[1727182998388,1.98264003,2637.8,2637.2,0.99414672]
[1727182998389,21.57697012,2637.8,2637.2,0.99414672]
[1727182998590,21.57697012,2637.8,2637.0,1.49129912]
[1727182998591,3.2078,2637.3,2636.7,1.37484672]
[1727182998790,2.36182852,2636.9,2636.7,0.3807]
[1727182999186,1.98257852,2636.8,2636.7,0.3807]
[1727182999386,1.48584169,2636.8,2636.7,0.3807]
[1727182999802,1.48584169,2636.8,2636.7,7.34439425]
[1727182999803,0.99063159,2636.8,2636.7,7.34439425]
[1727183000095,0.99063159,2636.8,2636.7,7.8839081]
[1727183000298,0.99063159,2636.8,2636.7,7.88390091]
[1727183000492,0.99063159,2636.8,2636.7,7.72367425]
[1727183000689,0.99063159,2637.0,2636.7,12.67062844]
[1727183000892,0.99063159,2637.0,2636.9,2.66]
[1727183000893,1.48584169,2637.0,2636.9,2.66]
[1727183001091,1.48584169,2637.1,2636.9,2.66]
[1727183001292,1.48584169,2637.1,2636.9,7.00460366]